[Event "44th Chess Olympiad Open 2022"]
[Site "Chennai"]
[Date "2022.07.31"]
[Round "3.2"]
[White "Aronian, Levon"]
[Black "Mchedlishvili, Mikheil"]
[Result "1-0"]
[WhiteElo "2775"]
[BlackElo "2593"]
[Annotator "TA"]
[PlyCount "119"]
[EventDate "2022.??.??"]
[TimeControl "60"]

{[%evp 12,119,0,19,30,0,0,0,0,0,0,0,0,0,0,0,9,19,12,9,25,25,51,37,39,39,41,12,
22,24,18,25,29,18,22,16,20,0,0,0,0,0,0,0,0,0,0,0,2,0,13,0,24,0,0,0,20,6,20,0,
20,12,20,28,41,0,0,0,0,0,0,0,99,99,99,60,83,90,87,80,177,177,150,110,152,143,
166,164,239,258,562,550,563,554,522,515,668,655,629,604,926,895,870,780,1907,
1840,1620,518,377,377]} 1. c4 {[%emt 0:03:29]} c6 {[%emt 0:00:30]} 2. Nf3 {
[%emt 0:03:02]} d5 {[%emt 0:00:20]} 3. g3 {[%emt 0:00:06]} Nf6 {[%emt 0:01:45]}
4. Bg2 {[%emt 0:00:08]} dxc4 {[%emt 0:00:57]} 5. O-O {[%emt 0:00:52]} Nbd7 {
[%emt 0:00:41]} 6. Qc2 {[%emt 0:01:17]} Nb6 {[%emt 0:00:45]} 7. Na3 {[%emt 0:
00:00]} Be6 {[%emt 0:01:10] A11: English Opening: 1...c6.} 8. Ne5 {[%emt 0:00:
00]} (8. Ng5 $5 {[%cal Rg5e6]}) 8... h5 {[%emt 0:01:17] 8...h5 scores better
than 8...Qd4.} (8... Qd4 {feels hotter.} 9. Nxc6 bxc6 10. Bxc6+ Nfd7) 9. Naxc4
{[%emt 0:00:05]} Nxc4 {[%emt 0:01:25] The position is equal.} 10. Nxc4 {
[%emt 0:00:05]} h4 {[%emt 0:02:17]} 11. Ne5 {[%emt 0:00:06][%cal Yd2d4]} hxg3 {
[%emt 0:01:11]} 12. hxg3 {[%emt 0:02:48][%cal Yd2d4]} Qd4 {[%emt 0:01:05]} 13.
Qc3 {[%emt 0:10:23]} ({Wrong is} 13. Bxc6+ $2 Kd8 14. Qc3 (14. Bxb7 $2 Qxe5 15.
Qd3+ Nd5 $19) 14... Qxc3 15. dxc3 bxc6 16. Nxc6+ Ke8 $19) 13... Rd8 {[%emt 0:
00:00]} 14. Qxd4 {[%emt 0:03:51]} Rxd4 {[%emt 0:00:07] [#]} 15. d3 $146 {
[%emt 0:00:18]} ({Predecessor:} 15. b3 Rh5 16. Nd3 Bf5 17. Bf3 Rh8 18. Ne5 Be4
19. Kg2 Rd5 20. d3 Bxf3+ 21. Nxf3 {½-½ (40) Quinones Borda,J (2281)-Szabo,V 
(2423) LSS email 2018}) 15... a6 {[%emt 0:10:03]} 16. Bd2 {[%emt 0:02:55]} Bh3
{[%emt 0:11:02]} 17. Rfc1 {[%emt 0:11:29]} Bxg2 {[%emt 0:05:31]} 18. Kxg2 {
[%emt 0:00:04]} g6 {[%emt 0:01:49]} 19. Rc4 {[%emt 0:04:35]} Rd5 {[%emt 0:00:
00]} 20. Bc3 {[%emt 0:02:57]} Rh5 {[%emt 0:01:08]} 21. f4 {[%emt 0:04:58]} Nd7
{[%emt 0:00:45][%cal Rd7e5]} 22. Nf3 {[%emt 0:00:43]} e6 {[%emt 0:04:41]} 23.
g4 {[%emt 0:02:27]} Rh7 {[%emt 0:00:26]} 24. g5 {[%emt 0:02:02]} Bd6 {[%emt 0:
00:00]} 25. a4 {[%emt 0:03:10]} Kd8 {[%emt 0:04:01]} 26. b3 {[%emt 0:10:28]} e5
{[%emt 0:08:14]} 27. fxe5 {[%emt 0:08:11]} Nxe5 {[%emt 0:02:39]} 28. Bxe5 {
[%emt 0:02:29]} Bxe5 {[%emt 0:00:05]} 29. d4 {[%emt 0:00:13]} Bc7 {[%emt 0:00:
00]} 30. e4 {[%emt 0:02:16]} Rd7 {[%emt 0:01:14]} 31. b4 {[%emt 0:01:05][%cal
Yb4b5]} Rh8 {[%emt 0:02:40]} 32. Rac1 {[%emt 0:03:01][%cal Yd4d5]} Re8 {
[%emt 0:01:13]} 33. e5 {[%emt 0:00:47]} Bb6 {[%emt 0:02:16]} 34. Rh1 {[%emt 0:
00:00]} Rd5 {[%emt 0:01:35]} (34... Ke7 {is more complex.} 35. Kf2 Ke6 36. Ke3
Rd5) 35. Kg3 {[%emt 0:01:41]} Ke7 {[%emt 0:02:17]} 36. Kf4 {[%emt 0:01:02]}
Rdd8 {[%emt 0:00:48]} 37. Ke4 {[%emt 0:06:21][%cal Yb4b5]} Rh8 {[%emt 0:00:57]}
38. Rcc1 {[%emt 0:01:22]} Rxh1 {[%emt 0:01:51]} 39. Rxh1 $11 {[%emt 0:02:35]
Endgame KRB-KRN} Rd5 $1 {[%emt 0:00:16]} 40. Rh8 {[%emt 0:03:29] Strongly
threatening Rb8.} Rd8 {[%emt 0:00:18] Against Rb8} 41. Rh7 {[%emt 0:00:00]} Ke6
{[%emt 0:05:36]} (41... Rd7 $11) 42. a5 $16 {[%emt 0:01:18]} Ba7 {[%emt 0:01:
50]} 43. Rh1 {[%emt 0:03:33]} Ke7 {[%emt 0:00:36]} 44. Kd3 {[%emt 0:00:00]} Ke6
{[%emt 0:08:13]} 45. Rh4 {[%emt 0:12:36]} Ke7 {[%emt 0:09:14]} (45... c5 $16)
46. Nd2 $1 $18 {[%emt 0:03:11]} c5 {[%emt 0:05:43]} 47. bxc5 {[%emt 0:00:06]}
Bxc5 {[%emt 0:00:03]} 48. Kc3 {[%emt 0:00:14]} Ba7 {[%emt 0:00:00]} 49. Nc4 {
[%emt 0:00:33] Against b6} Bb8 {[%emt 0:00:45]} (49... Rd5 $142 50. Kd3 Bc5)
50. Kd3 $1 {[%emt 0:01:05]} Rd5 $2 {[%emt 0:02:05] [#]} (50... Ba7 {is a
better chance.} 51. Nd6 b5 52. axb6 Bxb6) 51. Ke4 $1 {[%emt 0:01:36]} Rb5 {
[%emt 0:00:10]} 52. Rh8 {[%emt 0:01:02]} Bc7 {[%emt 0:00:34]} 53. Ne3 {[%emt 0:
02:21] Black must now prevent Nd5+.} Bxa5 {[%emt 0:02:54]} 54. Nd5+ {[%emt 0:
00:20]} Kd7 {[%emt 0:00:40]} 55. Rf8 Bd8 {[%emt 0:00:31] [#]} 56. Nf6+ $1 {
[%emt 0:00:55]} Kc8 {[%emt 0:01:13]} 57. Rxf7 {[%emt 0:01:33]} a5 {[%emt 0:00:
00]} 58. e6 {[%emt 0:00:36] White threatens Nd5 and mate.} a4 {[%emt 0:00:00]}
59. e7 {[%emt 0:03:13]} (59. Nd5 $142 {Threatening mate with Rf8.} Rb1 60. Ke5)
59... Bxe7 {[%emt 0:00:34]} 60. Rxe7 {[%emt 0:00:04] Weighted Error Value:
White=0.14 (very precise) /Black=0.23 (precise)} 1-0

[Event "44th Chess Olympiad Open 2022"]
[Site "Chennai"]
[Date "2022.07.31"]
[Round "3.2"]
[White "Shankland, Sam"]
[Black "Gelashvili, Tamaz"]
[Result "1-0"]
[WhiteElo "2720"]
[BlackElo "2549"]
[Annotator "TA"]
[PlyCount "143"]
[EventDate "2022.??.??"]
[TimeControl "60"]

{[%evp 11,143,37,47,27,29,23,29,18,31,21,37,32,25,39,29,32,33,32,33,19,25,15,
20,14,30,0,0,-25,-31,-68,-56,-66,-50,-47,-54,-137,-55,-82,53,49,64,64,64,19,21,
16,16,8,14,26,34,18,18,0,26,0,0,0,0,0,0,0,0,0,14,12,33,0,42,0,71,7,8,12,246,
262,346,334,444,428,391,0,0,8,316,313,279,281,302,294,317,301,286,270,283,290,
348,347,351,349,327,321,325,303,290,290,157,283,276,257,270,257,408,416,516,
478,504,433,506,445,414,351,797,776,1464,1466,1682,1688,6082,4216,29980,29981,
29968,5389]} 1. e4 {[%emt 0:00:12]} c5 {[%emt 0:00:10]} 2. Nf3 {[%emt 0:00:06]}
d6 {[%emt 0:00:06]} 3. d4 {[%emt 0:00:05]} cxd4 {[%emt 0:00:05]} 4. Nxd4 {
[%emt 0:00:03]} Nf6 {[%emt 0:00:08]} 5. Nc3 {[%emt 0:00:04]} Nc6 {[%emt 0:00:
00]} 6. Bg5 {[%emt 0:00:23]} Bd7 {[%emt 0:00:09]} 7. Nxc6 {[%emt 0:00:37] B60:
Sicilian: Richter-Rauzer: Unusual Black 6th moves and 6...Bd7 without 7 Qd2.}
bxc6 {[%emt 0:03:51]} 8. Bc4 {[%emt 0:03:36]} e6 {[%emt 0:01:39] [#]} 9. Qe2
$146 {[%emt 0:01:51] White has an edge.} ({Predecessor:} 9. O-O Be7 10. Bxf6
gxf6 11. Qh5 Qb6 12. Bb3 Qd4 13. Kh1 Qe5 14. Qh3 h5 15. f4 {½-½ (47) Motylev,
A (2633)-Hansen,E (2606) Chess.com INT 2022}) 9... Be7 {[%emt 0:00:30]} 10. e5
{[%emt 0:06:28]} Nd5 {[%emt 0:03:51]} 11. Bxe7 {[%emt 0:01:10]} Qxe7 {[%emt 0:
00:00]} 12. exd6 {[%emt 0:00:31]} Qxd6 {[%emt 0:01:24]} 13. Ne4 {[%emt 0:01:08]
} Qe7 {[%emt 0:01:05]} 14. O-O {[%emt 0:02:20]} O-O {[%emt 0:04:42]} 15. Rad1 {
[%emt 0:03:31]} a5 {[%emt 0:00:34]} 16. c3 {[%emt 0:11:03]} a4 {[%emt 0:02:53]}
17. a3 {[%emt 0:01:12]} Rab8 {[%emt 0:00:21]} 18. Qc2 {[%emt 0:08:10]} c5 {
[%emt 0:03:28]} 19. Be2 {[%emt 0:05:45]} f5 {[%emt 0:16:39]} 20. Nd2 {[%emt 0:
00:00]} Nf4 $1 {[%emt 0:00:18]} 21. Rfe1 {[%emt 0:01:15]} Bc6 {[%emt 0:11:52]}
(21... Qg5 $5 22. Bf3 Bb5 $15) 22. Bf3 {[%emt 0:04:07]} Qb7 {[%emt 0:01:44]}
23. Re3 {[%emt 0:01:32]} (23. Bxc6 $15 Qxc6 24. Nf3) 23... Rfd8 {[%emt 0:04:18]
} (23... Bxf3 $17 24. Nxf3 Qxb2 25. Qxb2 Rxb2) 24. h4 {[%emt 0:12:26]} Bxf3 {
[%emt 0:17:07]} ({Black should play} 24... Qxb2 $17 25. Qxb2 Rxb2 26. Bxc6
Rdxd2 27. Rxd2 Rxd2 28. Bxa4 Kf7) 25. Nxf3 $14 {[%emt 0:00:48]} Rxd1+ {[%emt 0:
00:00]} 26. Qxd1 {[%emt 0:00:01]} Qc6 {[%emt 0:00:37]} (26... Qxb2 $2 27. Qd6
$18) 27. c4 {[%emt 0:01:19]} (27. g3 $5 {[%cal Rg3f4]} Nd5 28. Rd3 $14) 27...
h6 {[%emt 0:01:10]} (27... Rxb2 $2 28. Qd8+ Kf7 29. Ne5#) 28. g3 {[%emt 0:00:
00]} Ng6 {[%emt 0:00:23]} 29. Qe2 {[%emt 0:02:55]} Nf8 {[%emt 0:03:02]} 30. Ne5
{[%emt 0:00:18]} Qd6 {[%emt 0:02:33]} 31. h5 {[%emt 0:06:15]} Rb6 {[%emt 0:00:
00]} 32. Rd3 {[%emt 0:03:18]} Qc7 {[%emt 0:00:04]} (32... Qb8 $5 {[%cal Rb6b2]}
33. Rd2 Rd6 34. Rxd6 Qxd6 $11) 33. f4 {[%emt 0:05:54]} Qb8 {[%emt 0:01:00]} 34.
Rd2 {[%emt 0:00:07]} Rb3 {[%emt 0:00:40]} 35. Kh2 {[%emt 0:00:19]} Qe8 {
[%emt 0:00:21]} 36. Qd1 {[%emt 0:01:36] Threatens to win with Rd8.} Rb8 {
[%emt 0:00:03] Inhibits Rd8.} 37. Kh3 {[%emt 0:02:21][%cal Yh2h3,Yh3g2,Yg2g1]}
Nh7 {[%emt 0:00:58]} 38. Nd7 {[%emt 0:00:20]} Rc8 {[%emt 0:00:37]} 39. Kg2 {
[%emt 0:04:13]} Kh8 {[%emt 0:00:23]} 40. Rd6 {[%emt 0:01:20]} Rd8 {[%emt 0:00:
46]} (40... Qe7 $11 {remains equal.}) 41. Ne5 {[%emt 0:33:41]} (41. Nxc5 Rxd6
42. Qxd6 Nf6 $11) (41. Kf1 $16) 41... Rxd6 {[%emt 0:02:26]} 42. Qxd6 $11 {
[%emt 0:00:00] Endgame KQN-KQN} Kg8 $2 {[%emt 0:00:06]} (42... Nf6 $11 {
and Black is okay.}) 43. Qd7 $1 $18 {[%emt 0:00:00]} ({Stronger than} 43. Qxc5
Qxh5 44. Nf3 Qe8 $11) 43... Qa8+ {[%emt 0:00:12]} 44. Kg1 {[%emt 0:00:00]} Nf8
{[%emt 0:07:46]} 45. Qf7+ {[%emt 0:00:00]} (45. Qe7 Qe4 $11) 45... Kh8 {
[%emt 0:00:32]} 46. Kf2 $2 {[%emt 0:00:00]} (46. Ng6+ $18 Nxg6 47. hxg6) 46...
Qb8 $11 {[%emt 0:00:14]} 47. Ke1 {[%emt 0:00:00] aiming for Kd1.} Qa8 $2 {
[%emt 0:00:22] Black is now going downhill.} (47... Kh7 $1 $11) 48. Kd2 $1 $18
{[%emt 0:00:00][%cal Yf7f8] Hoping for Qxf8+! Active counter play!} Kh7 {
[%emt 0:01:54]} (48... Qg2+ $2 49. Kc3 Qa8 50. Qe7) 49. Nd3 {[%emt 0:00:00]}
Qd8 {[%emt 0:01:12]} 50. Kc2 {[%emt 0:00:00]} Qd6 {[%emt 0:00:56]} 51. Ne5 {
[%emt 0:00:00] Prevents Nd7.} Qb8 {[%emt 0:00:08]} 52. Kc1 $1 {[%emt 0:00:00]
Ng6 is the strong threat.} Qa8 {[%emt 0:00:17][%cal Ya8e4] [#]} 53. Nd3 $1 {
[%emt 0:00:00]} ({Inferior is} 53. Kb1 Qe4+ 54. Ka1 Qe1+ 55. Ka2 Qe3 $11) 53...
Qd8 {[%emt 0:09:48]} 54. Nxc5 {[%emt 0:00:00]} Qd6 {[%emt 0:00:24]} 55. Nxa4 {
[%emt 0:00:00]} Nd7 {[%emt 0:00:06]} 56. Qg6+ {[%emt 0:00:00]} Kh8 {[%emt 0:00:
00]} 57. Qe8+ {[%emt 0:00:00]} Kh7 {[%emt 0:00:01]} 58. Qd8 {[%emt 0:00:41]}
Qd3 {[%emt 0:01:58]} (58... Qd4 $18 59. Nc3 Qg1+ 60. Kc2 (60. Nd1 Nc5 $16)
60... Qf2+ 61. Kb3 Qd4) 59. Nc3 $16 {[%emt 0:00:15]} Qf1+ {[%emt 0:00:41]} 60.
Kc2 {[%emt 0:00:32]} Qf2+ {[%emt 0:02:22]} 61. Kb3 {[%emt 0:00:42]} Nc5+ {
[%emt 0:00:13] [#]} (61... Qd4 {might work better.} 62. Qc8 Nc5+ 63. Kb4 Nd3+
64. Kb5 Nxb2) 62. Ka2 $1 $18 {[%emt 0:00:24]} Qxg3 {[%emt 0:02:38]} 63. Qd4 {
[%emt 0:01:58]} Nd3 {[%emt 0:00:14]} 64. a4 {[%emt 0:00:28][%cal Ya3a4,Ya4a5,
Ya5a6]} Nxf4 {[%emt 0:01:26]} 65. a5 {[%emt 0:00:43]} Nd3 {[%emt 0:00:00]} 66.
Ka3 {[%emt 0:00:21]} Ne5 $2 {[%emt 0:06:50]} (66... Ne1 67. Kb3 Nf3) 67. a6 {
[%emt 0:00:36]} Nc6 {[%emt 0:00:21]} 68. Qc5 {[%emt 0:00:30]} Qc7 {[%emt 0:00:
19]} 69. b4 {[%emt 0:00:22][%cal Yb2b4,Yb4b5]} f4 {[%emt 0:00:00]} 70. b5 {
[%emt 0:01:03]} Qa5+ {[%emt 0:00:18]} 71. Kb3 {[%emt 0:00:22]} Nd8 {[%emt 0:00:
34]} 72. Qa3 {[%emt 0:01:31] Weighted Error Value: White=0.23 (precise) /
Black=0.27 (precise)} 1-0

[Event "44th Chess Olympiad Open 2022"]
[Site "Chennai"]
[Date "2022.07.31"]
[Round "3.2"]
[White "Jobava, Baadur"]
[Black "Caruana, Fabiano"]
[Result "1/2-1/2"]
[WhiteElo "2585"]
[BlackElo "2783"]
[Annotator "TA"]
[PlyCount "72"]
[EventDate "2022.??.??"]
[TimeControl "60"]

{[%evp 9,72,-32,-32,-27,-15,-45,-46,-48,-6,-11,-21,-41,-8,-14,-6,-20,-8,-11,-7,
-22,0,0,0,-2,0,0,0,0,23,0,0,0,0,0,0,0,0,0,0,0,0,0,0,0,0,0,0,0,0,0,0,0,0,0,0,0,
0,0,0,0,0,0,0,0,0]} 1. Nf3 {[%emt 0:00:11]} Nf6 {[%emt 0:00:35]} 2. g3 {
[%emt 0:00:39]} c5 {[%emt 0:00:11]} 3. Bg2 {[%emt 0:00:24]} Nc6 {[%emt 0:00:06]
} 4. O-O {[%emt 0:00:56]} e5 {[%emt 0:00:08][%cal Ye7e5,Ye5e4]} 5. c3 {[%emt 0:
00:31]} d5 {[%emt 0:08:21]} 6. d4 {[%emt 0:00:59] A04: Unusual lines after 1
Nf3 and King's Indian Attack.} e4 {[%emt 0:00:05]} 7. Ne1 {[%emt 0:00:00] [#]}
h5 $146 {[%emt 0:18:51]} ({Predecessor:} 7... Bf5 8. Bg5 cxd4 9. cxd4 Qb6 10.
Bxf6 gxf6 11. Nc3 Be6 12. Nc2 Qxb2 13. Qd2 Bb4 {0-1 (46) Poetsch,L (1756)
-Lohrmann,T (1605) Magdeburg 2015}) 8. h4 {[%emt 0:03:36] Black is slightly
better.} Be7 {[%emt 0:16:17]} 9. Nc2 {[%emt 0:04:46]} Be6 {[%emt 0:00:00]} 10.
Nba3 {[%emt 0:08:00]} a6 {[%emt 0:09:45]} 11. dxc5 {[%emt 0:14:46]} Bxc5 {
[%emt 0:00:05]} 12. Bg5 {[%emt 0:05:31]} O-O {[%emt 0:02:36]} 13. Qd2 {[%emt 0:
05:03]} Qc7 {[%emt 0:02:48] ...Qxg3 is the strong threat.} 14. Nd4 {[%emt 0:05:
48]} (14. Bxf6 {looks sharper.} gxf6 15. Nd4 Bxa3 16. bxa3 Kg7 17. Nxc6 Qxc6
18. Rab1) 14... Nxd4 {[%emt 0:00:56]} (14... Ng4 {with more complications.} 15.
Bf4 Qe7 16. Nac2 Rfe8) 15. cxd4 {[%emt 0:00:05] [#] aiming for Rac1.} Be7 {
[%emt 0:00:12]} 16. Rfc1 {[%emt 0:02:43]} Qb6 {[%emt 0:02:19]} 17. Nb1 {
[%emt 0:00:10]} Rfc8 {[%emt 0:12:17]} 18. Nc3 {[%emt 0:00:41]} Qd8 {[%emt 0:00:
29]} (18... Rc4 $5 {[%cal Rc4d4]}) 19. e3 {[%emt 0:01:13]} Ng4 {[%emt 0:01:54]
The position is equal.} 20. Bxe7 {[%emt 0:02:58]} Qxe7 {[%emt 0:00:00]} 21. Ne2
{[%emt 0:03:04]} g5 {[%emt 0:09:02] Inhibits Nf4.} ({Don't do} 21... Qf6 22.
Nf4 $16) 22. hxg5 {[%emt 0:00:12]} Qxg5 {[%emt 0:00:04]} 23. Rxc8+ {[%emt 0:00:
05]} Rxc8 {[%emt 0:00:03]} 24. Rc1 {[%emt 0:00:04]} Rxc1+ {[%emt 0:03:59]} 25.
Qxc1 {[%emt 0:00:05]} ({But not} 25. Nxc1 Qf6 $15) 25... h4 {[%emt 0:00:08]}
26. Qc7 {[%emt 0:04:17]} Qf6 {[%emt 0:03:57]} 27. Qf4 {[%emt 0:02:45]} Qxf4 {
[%emt 0:00:04]} 28. gxf4 $11 {[%emt 0:00:05] Endgame KBN-KBN} Kg7 {[%emt 0:01:
55]} 29. Nc3 {[%emt 0:01:22]} Nf6 {[%emt 0:00:00]} 30. b4 {[%emt 0:00:32]} Kf8
{[%emt 0:01:39]} 31. Bf1 {[%emt 0:01:45]} Ke7 {[%emt 0:00:24]} 32. a4 {[%emt 0:
00:35]} Kd6 {[%emt 0:00:22]} 33. a5 {[%emt 0:00:00]} Bd7 {[%emt 0:01:13]} 34.
Kg2 {[%emt 0:00:48]} Ng4 {[%emt 0:00:29][%cal Yh4h3]} 35. Kg1 {[%emt 0:02:13]}
Nf6 {[%emt 0:00:15]} 36. Kg2 {[%emt 0:01:21]} Ng4 {[%emt 0:00:05] Weighted
Error Value: White=0.03 (flawless) /Black=0.05 (flawless)} 1/2-1/2

[Event "44th Chess Olympiad Open 2022"]
[Site "Chennai"]
[Date "2022.07.31"]
[Round "3.2"]
[White "Pantsulaia, Levan"]
[Black "Dominguez Perez, Leinier"]
[Result "1/2-1/2"]
[WhiteElo "2581"]
[BlackElo "2754"]
[Annotator "TA"]
[PlyCount "40"]
[EventDate "2022.??.??"]
[TimeControl "60"]

{[%evp 20,40,18,0,0,0,0,0,0,0,0,0,0,0,0,0,0,0,0,0,0,0,0]} 1. Nf3 {[%emt 0:00:
00]} c5 {[%emt 0:00:10]} 2. c4 {[%emt 0:00:17]} Nf6 {[%emt 0:00:14]} 3. g3 {
[%emt 0:01:26]} Nc6 {[%emt 0:00:20]} 4. Bg2 {[%emt 0:00:24]} d5 {[%emt 0:00:19]
} 5. cxd5 {[%emt 0:03:42]} Nxd5 {[%emt 0:00:07]} 6. Nc3 {[%emt 0:07:23]} Nc7 {
[%emt 0:00:52]} 7. O-O {[%emt 0:01:36]} e5 {[%emt 0:00:15]} 8. b3 {[%emt 0:00:
00]} Be7 {[%emt 0:00:41]} 9. Bb2 {[%emt 0:00:06]} O-O {[%emt 0:00:21]} 10. Rc1
{[%emt 0:00:10]} f6 {[%emt 0:00:49]} 11. Ne1 {[%emt 0:13:17] The position is
equal.} Qd7 {[%emt 0:01:04] A34: Symmetrical English: 2 Nc3, lines with ...d5.}
12. Nd3 {[%emt 0:03:12]} b6 {[%emt 0:00:08]} 13. b4 {[%emt 0:10:55] [#]} Nxb4
$146 {[%emt 0:02:14]} ({Much less strong is} 13... cxb4 14. Qb3+ Kh8 15. Nd5
Nxd5 16. Qxd5 $16) ({Predecessor:} 13... Rb8 14. bxc5 bxc5 15. Na4 Ne6 16. Ba3
Rd8 17. Bxc5 Ned4 18. Bxe7 Nxe7 19. Ndc5 Qb5 {1-0 (51) Maslak,S (2236)
-Goldblat,M (2237) Germany 2001}) 14. Nxb4 {[%emt 0:00:45]} cxb4 {[%emt 0:00:
00]} 15. Nb5 {[%emt 0:12:12]} Qxb5 {[%emt 0:06:02]} (15... Nd5 $2 16. Qb3 e4
17. Bxe4 $18) 16. Rxc7 {[%emt 0:00:08]} Bd6 {[%emt 0:01:06]} 17. Rc6 {[%emt 0:
00:00]} Be7 {[%emt 0:01:37]} 18. Rc7 {[%emt 0:00:31] Against Bb7} Bd6 {[%emt 0:
00:00]} 19. Rc6 {[%emt 0:00:46]} Be7 {[%emt 0:00:35]} 20. Rc7 {[%emt 0:00:07]
[%csl Ya8,Ye7] Inhibits Bb7.} Bd6 {[%emt 0:00:06] An even fight not without
its subleties. Weighted Error Value: White=0.02 (flawless) /Black=0.00 
(flawless)} 1/2-1/2

[Event "44th Chess Olympiad Open 2022"]
[Site "Chennai"]
[Date "2022.07.31"]
[Round "3.3"]
[White "Tari, Aryan"]
[Black "Moroni, Luca Jr"]
[Result "1/2-1/2"]
[WhiteElo "2672"]
[BlackElo "2584"]
[Annotator "TA"]
[PlyCount "80"]
[EventDate "2022.??.??"]
[TimeControl "60"]

{[%evp 9,80,27,27,29,34,21,23,31,32,14,29,29,28,10,16,12,14,25,24,0,0,0,0,-24,
-17,-25,-8,-26,-25,-35,-19,-18,-18,-19,-26,-6,0,0,0,-19,-8,-14,0,0,0,0,0,0,0,0,
0,0,0,0,0,0,0,0,0,0,0,0,0,0,0,0,0,0,9,9,9,9,9]} 1. d4 {[%emt 0:00:33]} d5 {
[%emt 0:00:04]} 2. Nf3 {[%emt 0:00:36]} e6 {[%emt 0:00:36]} 3. c4 {[%emt 0:00:
00]} a6 {[%emt 0:00:07]} 4. Bg5 {[%emt 0:00:24]} Be7 {[%emt 0:00:13]} 5. Bxe7 {
[%emt 0:00:13]} Qxe7 {[%emt 0:00:05]} 6. Nbd2 {[%emt 0:01:19] D30: Queen's
Gambit Declined: Systems without Nc3.} Nf6 {[%emt 0:00:14]} 7. g3 {[%emt 0:00:
00]} O-O {[%emt 0:00:22]} 8. Bg2 {[%emt 0:00:12] White has an edge.} b6 {
[%emt 0:00:06]} 9. O-O {[%emt 0:01:02]} Nbd7 {[%emt 0:02:26]} 10. Rc1 {[%emt 0:
00:00]} c5 {[%emt 0:00:42]} 11. cxd5 {[%emt 0:05:55]} exd5 {[%emt 0:00:06]} 12.
Re1 {[%emt 0:00:47][%cal Ye2e4]} Bb7 {[%emt 0:00:08]} 13. dxc5 {[%emt 0:02:18]}
bxc5 {[%emt 0:00:06]} 14. Qb3 {[%emt 0:02:28]} (14. e4 $5) 14... Rfb8 {[%emt 0:
00:00] [#]} 15. Qa3 $146 {[%emt 0:04:23]} ({Predecessor:} 15. Qc2 a5 16. Nh4
Qe6 17. a3 Qb6 18. e4 Nxe4 19. Nxe4 dxe4 20. Bxe4 Bxe4 21. Rxe4 {½-½ (27)
Sunilduth Lyna,N (2662)-Moroni,L (2581) Sharjah 2022}) 15... a5 {[%emt 0:03:09]
} 16. b3 {[%emt 0:11:06]} (16. e4 {feels hotter.} Nxe4 17. Nd4 Qe5 18. Nxe4
dxe4 19. Nb3) 16... h6 {[%emt 0:08:30]} 17. e3 {[%emt 0:03:12]} Qe6 {[%emt 0:
00:00]} 18. Qb2 {[%emt 0:05:22]} a4 {[%emt 0:07:11]} 19. Qc2 {[%emt 0:01:48]}
axb3 {[%emt 0:04:51]} 20. axb3 {[%emt 0:00:42]} Qb6 {[%emt 0:03:11]} 21. Ra1 {
[%emt 0:04:48]} Rxa1 {[%emt 0:03:14]} 22. Rxa1 {[%emt 0:00:06]} Ra8 {[%emt 0:
00:00] The position is equal.} 23. Rxa8+ {[%emt 0:05:29]} Bxa8 {[%emt 0:00:07]}
24. h4 {[%emt 0:00:09]} Bb7 {[%emt 0:04:58]} 25. Qc3 {[%emt 0:04:47]} Ne4 {
[%emt 0:07:35]} 26. Nxe4 {[%emt 0:03:36]} dxe4 {[%emt 0:00:10]} 27. Nd2 {
[%emt 0:00:06]} Nf6 {[%emt 0:01:26]} 28. Bf1 {[%emt 0:04:10]} Qb4 {[%emt 0:00:
00]} 29. Qc2 {[%emt 0:01:54]} Bd5 {[%emt 0:02:53]} 30. Bc4 {[%emt 0:02:04]}
Bxc4 {[%emt 0:04:46]} 31. Nxc4 $11 {[%emt 0:05:09] Endgame KQN-KQN} Qb7 {
[%emt 0:10:47]} 32. Qd1 {[%emt 0:01:49]} h5 {[%emt 0:04:23]} 33. Kg2 {[%emt 0:
01:16]} Kh7 {[%emt 0:01:16]} 34. Qd6 {[%emt 0:02:46]} Qxb3 {[%emt 0:00:00]} 35.
Qxc5 {[%emt 0:00:14]} g6 {[%emt 0:03:06]} 36. Qd4 {[%emt 0:04:11]} Qa2 {
[%emt 0:02:01]} 37. Qxf6 {[%emt 0:05:23]} Qxc4 {[%emt 0:00:10]} 38. Qe5 {
[%emt 0:00:21]} f5 {[%emt 0:03:33]} 39. Qf6 {[%emt 0:00:40]} Qc7 {[%emt 0:00:
00]} 40. Qf8 {[%emt 0:00:49]} Qd7 {[%emt 0:02:15] Not much happened in this
game. Weighted Error Value: White=0.03 (flawless) /Black=0.03 (flawless)}
1/2-1/2